fUSD/lending_fUSD_20240301
["ID","MTS","AMOUNT","RATE_DAILY","PERIOD"]
[315914209,1709279680114,-1128.94,0.00022465,2]
[315914210,1709279680140,-584.54,0.00022465,2]
[315914211,1709279680167,-514.69,0.00022465,2]
[315914212,1709279680193,-1522.48,0.00022465,2]
[315914213,1709279680220,-1978.66,0.00022465,2]
[315914214,1709279680248,-500.0,0.00022465,2]
[315914215,1709279680275,-613.31,0.00022465,2]
[315914216,1709279680303,-1323.22,0.00022465,2]
[315914217,1709279680330,-1443.98,0.00022465,2]
[315914218,1709279680358,-500.0,0.00022465,2]
[315914219,1709279680384,-2447.28,0.00022465,2]
[315914220,1709279680409,-500.0,0.00022465,2]
[315914221,1709279680435,-514.58,0.00022465,2]
[315914222,1709279680463,-1815.56,0.00022465,2]
[315914223,1709279680490,-1315.99,0.00022465,2]
[315914224,1709279680515,-242.09592856,0.00022465,2]
[315914225,1709279680541,-740.02,0.00022465,2]
[315914226,1709279680566,-500.0,0.00022465,2]
[315914227,1709279680592,-4892.35,0.00022465,2]
[315914228,1709279680618,-720.37,0.00022465,2]
[315914229,1709279680645,-500.0,0.00022465,2]
[315914230,1709279680676,-1505.95,0.00022465,2]
[315914231,1709279680702,-500.0,0.00022465,2]
[315914232,1709279680728,-576.91,0.00022465,2]
[315914233,1709279680754,-523.59769438,0.00022465,2]
[315914234,1709279680779,-500.0,0.00022465,2]
[315914235,1709279680805,-500.0,0.00022465,2]
[315914236,1709279680832,-500.0,0.00022465,2]
[315914237,1709279680858,-715.54,0.00022465,2]
[315914238,1709279680884,-500.0,0.00022465,2]
[315914239,1709279680910,-1046.84,0.00022465,2]
[315914240,1709279680936,-500.0,0.00022465,2]
[315914241,1709279680962,-500.0,0.00022465,2]
[315914242,1709279680989,-1220.54,0.00022465,2]
[315914243,1709279681015,-1618.28,0.00022465,2]
[315914244,1709279681041,-3705.17,0.00022465,2]
[315914245,1709279681068,-915.59,0.00022465,2]
[315914246,1709279681094,-660.82,0.00022465,2]
[315914247,1709279681119,-1046.47,0.00022465,2]
[315914248,1709279681143,-500.0,0.00022465,2]
[315914249,1709279681169,-500.0,0.00022465,2]
[315914250,1709279681194,-2416.88,0.00022465,2]
[315914251,1709279681220,-500.0,0.00022465,2]
[315914252,1709279681248,-609.04,0.00022465,2]
[315914253,1709279681274,-2500.14,0.00022465,2]
[315914254,1709279681299,-1597.41,0.00022465,2]
[315914255,1709279681324,-607.92,0.00022465,2]
[315914256,1709279681350,-500.0,0.00022465,2]
[315914257,1709279681375,-733.52,0.00022465,2]
[315914258,1709279681400,-1386.06,0.00022465,2]
[315914259,1709279681424,-500.0,0.00022465,2]
[315914260,1709279681449,-536.89,0.00022465,2]
[315914261,1709279681475,-2562.556617,0.00022465,7]
[315914262,1709279681501,-151.0,0.00022465,7]
[315914263,1709279681582,-500.0,0.00022465,2]
[315914264,1709279681608,-2562.556617,0.00022465,7]
[315914265,1709279681633,-939.66,0.00022465,2]
[315914266,1709279681659,-1598.62,0.00022465,2]
[315914267,1709279681685,-500.0,0.00022465,2]
[315914268,1709279681712,-231.337517,0.00022465,7]
[315914269,1709279681740,-500.0,0.00022465,2]
[315914270,1709279681779,-940.79,0.00022465,2]
[315914271,1709279681810,-500.0,0.00022465,2]
[315914272,1709279681845,-231.337517,0.00022465,7]
[315914273,1709279681880,-1995.7,0.00022465,2]
[315914274,1709279681912,-1106.17,0.00022465,2]
[315914275,1709279681941,-151.0,0.00022465,7]
[315914276,1709279681970,-500.0,0.00022465,2]
[315914277,1709279681998,-632.87,0.00022465,2]
[315914278,1709279682023,-500.0,0.00022465,2]
[315914279,1709279682048,-151.0,0.00022465,7]
[315914280,1709279682073,-853.45,0.00022465,2]
[315914281,1709279682098,-730.0,0.00022465,2]
[315914282,1709279682124,-1299.81,0.00022465,2]
[315914283,1709279682149,-3137.16,0.00022465,2]
[315914284,1709279682174,-500.0,0.00022465,2]
[315914285,1709279682199,-500.0,0.00022465,2]
[315914286,1709279682231,-633.02,0.00022465,2]
[315914287,1709279682255,-214.22958726,0.00022465,2]
[315914288,1709279682281,-4122.65,0.00022465,2]
[315914289,1709279682305,-500.0,0.00022465,2]
[315914290,1709279682331,-500.0,0.00022465,2]
[315914291,1709279682356,-742.98,0.00022465,2]
[315914292,1709279682381,-500.0,0.00022465,2]
[315914293,1709279682407,-2539.46,0.00022465,2]
[315914294,1709279682432,-500.0,0.00022465,2]
[315914295,1709279682456,-506.27919997,0.00022465,2]
[315914296,1709279682483,-4692.23,0.00022465,2]
[315914297,1709279682509,-1890.61,0.00022465,2]
[315914298,1709279682535,-1671.68,0.00022465,2]
[315914299,1709279682561,-177.0,0.00022466,2]
[315914300,1709279682590,-50000.0,0.00022476,2]
[315914301,1709279682618,-50000.0,0.00022476,2]
[315914302,1709279682646,-50000.0,0.00022476,2]
[315914303,1709279682677,-50000.0,0.00022476,2]
[315914304,1709279682708,-50000.0,0.00022476,2]
[315914305,1709279682737,-50000.0,0.00022476,2]
[315914306,1709279682768,-27629.98055911,0.00022476,2]
[315914307,1709279682798,-50000.0,0.00022476,2]
[315914308,1709279682829,-50000.0,0.00022476,2]
[315914309,1709279682857,-50000.0,0.00022476,2]
[315914310,1709279682885,-48941.53580846,0.00022476,2]
[315914311,1709279682912,-50000.0,0.00022476,2]
[315914312,1709279682939,-12484.00084242,0.00022476,2]
[315914313,1709279682967,-8398.78346456,0.00022476,2]
[315914314,1709279682995,-25330.42470632,0.00022476,2]
[315914315,1709279683023,-50000.0,0.00022476,2]
[315914316,1709279683050,-59170.57055756,0.00022476,2]
[315914317,1709279683077,-2562.556617,0.00022476,7]
[315914318,1709279683109,-151.0,0.00022476,7]
[315914319,1709279683136,-2562.556617,0.00022476,7]
[315914320,1709279683161,-231.337517,0.00022476,7]
[315914321,1709279683187,-231.337517,0.00022476,7]
[315914322,1709279683213,-151.0,0.00022476,7]
[315914323,1709279683243,-156.458232,0.00022476,7]
[315914324,1709279683271,-1269.61,0.00022495,2]
[315914325,1709279683298,-192.52,0.00022495,2]
[315914326,1709279683325,-155.39182912,0.000225,2]
[315914327,1709279683352,-155.0,0.000225,2]
[315914328,1709279683377,-13915.25332423,0.000225,2]
[315914329,1709279683401,-203.0,0.000225,2]
[315914330,1709279683859,500.0,0.00022465,2]
[315914331,1709279683916,9850.21,0.00022191,2]
[315914332,1709279683978,9850.21,0.00022465,2]
[315914333,1709279684011,150.0,0.00021917,2]
[315914334,1709279684073,150.0,0.00022191,2]
[315914335,1709279684126,500.0,0.00021917,2]
[315914336,1709279684169,150.0,0.00022465,2]
[315914337,1709279684215,500.0,0.00022191,2]
[315914338,1709279684250,644.23884344,0.00022365,2]
[315914339,1709279684293,500.0,0.00021917,2]
[315914340,1709279684329,150.0,0.000219,2]
[315914341,1709279684367,500.0,0.00022465,2]
[315914342,1709279684562,500.0,0.00022191,2]
[315914343,1709279684607,464.83744717,0.000135,2]
[315914344,1709279684662,500.0,0.00022465,2]
[315914345,1709279685880,321.00994822,0.00021917,2]
[315914346,1709279686029,1030.29,0.00021917,2]
[315914347,1709279686067,1030.29,0.00022191,2]
[315914348,1709279686107,1030.29,0.00022465,2]
[315914349,1709279686146,683.79,0.00021917,2]
[315914350,1709279686178,683.79,0.00022191,2]
[315914351,1709279686214,683.79,0.00022465,2]
[315914352,1709279686428,8407.52,0.00021917,2]
[315914353,1709279686461,578.69,0.00021917,2]
[315914354,1709279686503,8407.52,0.00022191,2]
[315914355,1709279686540,578.69,0.00022191,2]
[315914356,1709279686603,8407.52,0.00022465,2]
[315914357,1709279686731,578.69,0.00022465,2]
[315914358,1709279687109,548.11,0.00021917,2]
[315914359,1709279687141,338.92476197,0.00021917,2]
[315914360,1709279687199,548.11,0.00022191,2]
[315914361,1709279687233,715.48,0.00021917,2]
[315914362,1709279687278,548.11,0.00022465,2]
[315914363,1709279687312,715.48,0.00022191,2]
[315914364,1709279687412,715.48,0.00022465,2]
[315914365,1709279687682,143349.72188717,0.000212,2]
[315914366,1709279687816,21252.46682283,0.0002219,2]
[315914367,1709279687873,437.33609476,0.0002219,2]
[315914368,1709279688490,247702.21961532,0.00022476,4]
[315914369,1709279688530,8428.13,0.00021917,2]
[315914370,1709279688570,8428.13,0.00022191,2]
[315914371,1709279688695,8428.13,0.00022465,2]
[315914372,1709279688789,1268.91,0.00021917,2]
[315914373,1709279688906,1268.91,0.00022191,2]
[315914374,1709279688978,757.19,0.00021917,2]
[315914375,1709279689021,1268.91,0.00022465,2]
[315914376,1709279689059,757.19,0.00022191,2]
[315914377,1709279689216,757.19,0.00022465,2]
[315914378,1709279689272,2000.0,0.000219,2]
[315914379,1709279689372,1471.38350424,0.00022191,2]
[315914380,1709279689428,4755.46,0.00021917,2]
[315914381,1709279689476,4755.46,0.00022191,2]
[315914382,1709279689576,4755.46,0.00022465,2]
[315914383,1709279689649,500.0,0.00021917,2]
[315914384,1709279689712,500.0,0.00022191,2]
[315914385,1709279689771,500.0,0.00022465,2]
[315914386,1709279690535,500.0,0.00021917,2]
[315914387,1709279690581,500.0,0.00021917,2]
[315914388,1709279690626,500.0,0.00022191,2]
[315914389,1709279690660,500.0,0.00022191,2]
[315914390,1709279690706,500.0,0.00022465,2]
[315914391,1709279690756,500.0,0.00022465,2]
[315914392,1709279691033,1054.74,0.00021917,2]
[315914393,1709279691130,1054.74,0.00022191,2]
[315914394,1709279691218,1063.66,0.00021917,2]
[315914395,1709279691252,1054.74,0.00022465,2]
[315914396,1709279691298,1063.66,0.00022191,2]
[315914397,1709279691347,1063.66,0.00022465,2]
[315914398,1709279691601,1518.51,0.00021917,2]
[315914399,1709279691652,1518.51,0.00022191,2]
[315914400,1709279691739,1518.51,0.00022465,2]
[315914401,1709279692139,1929.6,0.00021917,2]
[315914402,1709279692197,1929.6,0.00022191,2]
[315914403,1709279692439,1929.6,0.00022465,2]
[315914404,1709279692722,500.0,0.00021917,2]
[315914405,1709279692775,500.0,0.00022191,2]
[315914406,1709279692817,500.0,0.00022465,2]
[315914407,1709279693064,1471.38350424,0.00022191,2]
[315914408,1709279693222,2495.3,0.00021917,2]
[315914409,1709279693262,2495.3,0.00022191,2]
[315914410,1709279693349,2495.3,0.00022465,2]
[315914411,1709279693705,922.04,0.00021917,2]
[315914412,1709279693744,521.31,0.00021917,2]
[315914413,1709279693785,922.04,0.00022191,2]
[315914414,1709279693821,500.0,0.00021917,2]
[315914415,1709279694304,521.31,0.00022191,2]
[315914416,1709279694337,500.0,0.00022191,2]
[315914417,1709279694430,500.0,0.00022465,2]
[315914418,1709279694460,521.31,0.00022465,2]
[315914419,1709279694645,922.04,0.00022465,2]
[315914420,1709279694846,2395.24,0.00021917,2]
[315914421,1709279694892,2395.24,0.00022191,2]
[315914422,1709279694943,2395.24,0.00022465,2]
[315914423,1709279695138,155.0,0.000225,2]
[315914424,1709279695907,542.44,0.00021917,2]
[315914425,1709279696140,1025.36,0.00021917,2]
[315914426,1709279696222,542.44,0.00022191,2]
[315914427,1709279696417,1025.36,0.00022191,2]
[315914428,1709279696451,542.44,0.00022465,2]
[315914429,1709279696491,500.0,0.00021917,2]
[315914430,1709279696537,500.0,0.00021917,2]
[315914431,1709279696694,1025.36,0.00022465,2]
[315914432,1709279696750,637.9,0.00021917,2]
[315914433,1709279696787,500.0,0.00022191,2]
[315914434,1709279696827,500.0,0.00022191,2]
[315914435,1709279697006,637.9,0.00022191,2]
[315914436,1709279697045,500.0,0.00022465,2]
[315914437,1709279697078,500.0,0.00022465,2]
[315914438,1709279697276,637.9,0.00022465,2]
[315914439,1709279698803,1666.01,0.00021917,2]
[315914440,1709279699143,1666.01,0.00022191,2]
[315914441,1709279699407,1666.01,0.00022465,2]
[315914442,1709279699753,500.0,0.00021917,2]
[315914443,1709279699919,930.95,0.00021917,2]
[315914444,1709279700196,930.95,0.00022191,2]
[315914445,1709279700480,930.95,0.00022465,2]
[315914446,1709279701269,755.38,0.00021917,2]
[315914447,1709279701303,155.0,0.000215,2]
[315914448,1709279701492,1084.29,0.00021917,2]
[315914449,1709279701542,755.38,0.00022191,2]
[315914450,1709279701760,1084.29,0.00022191,2]
[315914451,1709279701835,755.38,0.00022465,2]
[315914452,1709279702013,1084.29,0.00022465,2]
[315914453,1709279702060,500.0,0.00021917,2]
[315914454,1709279702335,500.0,0.00022191,2]
[315914455,1709279702689,300.02998515,0.00022191,2]
[315914456,1709279702955,500.0,0.00022465,2]
[315914457,1709279705356,500.0,0.00021917,2]
[315914458,1709279705613,160.52397439,0.00021917,2]
[315914459,1709279705676,500.0,0.00022191,2]
[315914460,1709279705715,40900.9385,0.000219,2]
[315914461,1709279705822,2000.0,0.000225,2]
[315914462,1709279705962,500.0,0.00022465,2]
[315914463,1709279706285,500.0,0.00021917,2]
[315914464,1709279706565,500.0,0.00022191,2]
[315914465,1709279706860,514.44586124,0.00022465,2]
[315914466,1709279707828,18362.14,0.00021917,2]
[315914467,1709279708100,18362.14,0.00022191,2]
[315914468,1709279708301,500.0,0.00021917,2]
[315914469,1709279708375,18362.14,0.00022465,2]
[315914470,1709279708406,514.2617642,0.00021917,2]
[315914471,1709279708570,500.0,0.00022191,2]
[315914472,1709279708929,500.0,0.00022465,2]
[315914473,1709279709251,295.98423057,0.00021917,2]
[315914474,1709279709430,868.27,0.00021917,2]
[315914475,1709279709682,500.0,0.00021917,2]
[315914476,1709279709973,500.0,0.00021917,2]
[315914477,1709279710013,500.0,0.00022191,2]
[315914478,1709279710114,868.27,0.00022191,2]
[315914479,1709279710208,7736.727,0.000219,2]
[315914480,1709279710260,500.0,0.00022465,2]
[315914481,1709279710294,500.0,0.00022191,2]
[315914482,1709279710338,868.27,0.00022465,2]
[315914483,1709279710502,500.0,0.00021917,2]
[315914484,1709279710577,500.0,0.00022465,2]
[315914485,1709279710789,500.0,0.00022191,2]
[315914486,1709279710831,491.71455369,0.00021917,2]
[315914487,1709279711057,500.0,0.00022465,2]
[315914488,1709279711334,711.738,0.00021155,2]
[315914489,1709279711797,500.0,0.00021917,2]
[315914490,1709279712023,1612.59,0.00021917,2]
[315914491,1709279712059,500.0,0.00022191,2]
[315914492,1709279712208,1612.59,0.00022191,2]
[315914493,1709279712336,500.0,0.00022465,2]
[315914494,1709279712367,200.0,0.000225,2]
[315914495,1709279712478,1612.59,0.00022465,2]
[315914496,1709279712680,5138.317,0.00021155,2]
[315914497,1709279713073,1470.52141365,0.00022191,2]
[315914498,1709279713297,504.70276398,0.00021917,2]
[315914499,1709279713467,500.0,0.00021917,2]
[315914500,1709279715725,504.4189283,0.00021917,2]
[315914501,1709279715836,704.77,0.00021917,2]
[315914502,1709279716101,704.77,0.00022191,2]
[315914503,1709279717137,510.09597791,0.00021917,2]
[315914504,1709279717169,580.88,0.00021917,2]
[315914505,1709279717270,704.77,0.00022465,2]
[315914506,1709279717391,580.88,0.00022191,2]
[315914507,1709279717592,819.26,0.00021917,2]
[315914508,1709279717639,500.0,0.00021917,2]
[315914509,1709279717710,580.88,0.00022465,2]
[315914510,1709279717853,819.26,0.00022191,2]
[315914511,1709279717905,500.0,0.00022191,2]
[315914512,1709279718087,819.26,0.00022465,2]
[315914513,1709279718118,500.0,0.00022465,2]
[315914514,1709279718393,502.0,0.00021917,2]
[315914515,1709279718431,500.0,0.00021917,2]
[315914516,1709279718662,502.0,0.00022191,2]
[315914517,1709279718700,500.0,0.00022191,2]
[315914518,1709279718923,502.0,0.00022465,2]
[315914519,1709279718962,500.0,0.00022465,2]
[315914520,1709279720250,519.35067163,0.00021917,2]
[315914521,1709279720328,500.0,0.00021917,2]
[315914522,1709279720614,222.87361048,0.00022191,2]
[315914523,1709279721230,155.0,0.000215,2]
[315914524,1709279721534,2108.13,0.00021917,2]
[315914525,1709279721808,2108.13,0.00022191,2]
[315914526,1709279722104,2108.13,0.00022465,2]
[315914527,1709279722564,2994.7473,0.000219,2]
[315914528,1709279722764,1791.39,0.00021917,2]
[315914529,1709279722979,948.55,0.00021917,2]
[315914530,1709279723065,1791.39,0.00022191,2]
[315914531,1709279723250,948.55,0.00022191,2]
[315914532,1709279723336,1791.39,0.00022465,2]
[315914533,1709279723514,948.55,0.00022465,2]
[315914534,1709279725682,502.89679226,0.00021917,2]
[315914535,1709279725728,500.0,0.00021917,2]
[315914536,1709279725954,500.0,0.00022191,2]
[315914537,1709279726243,500.0,0.00022465,2]
[315914538,1709279726664,950.0,0.00021705,2]
[315914539,1709279727315,95154.4996707,0.00022496,2]
[315914540,1709279727571,507.16,0.00021917,2]
[315914541,1709279727758,512.58626839,0.00021917,2]
[315914542,1709279727862,507.16,0.00022191,2]
[315914543,1709279728151,507.16,0.00022465,2]
[315914544,1709279728686,2426.78,0.00021917,2]
[315914545,1709279728915,500.0,0.00021917,2]
[315914546,1709279728961,2426.78,0.00022191,2]
[315914547,1709279729201,143.62668453,0.00021917,2]
[315914549,1709279778365,-155.0,0.000215,2]
[315914550,1709279778393,-2956.1072,0.000219,2]
[315914551,1709279778419,-1871.4933,0.000219,2]
[315914552,1709279778444,-684.5751,0.000219,2]
[315914553,1709279778470,-1000.0,0.000219,2]
[315914554,1709279778494,-362.6421968,0.00021917,2]
[315914555,1709279778536,-1008.09,0.00021917,2]
[315914556,1709279778564,-1035.13,0.00021917,2]
[315914557,1709279778594,-500.0,0.00021917,2]
[315914558,1709279778621,-500.0,0.00021917,2]
[315914559,1709279778650,-805.79,0.00021917,2]
[315914560,1709279778679,-506.50460908,0.00021917,2]
[315914561,1709279778708,-794.46,0.00021917,2]
[315914562,1709279778737,-494.71633641,0.00021917,2]
[315914563,1709279778765,-512.21634624,0.00021917,2]
[315914564,1709279778794,-689.44,0.00021917,2]
[315914565,1709279778824,-416.4,0.00021917,2]
[315914566,1709279778854,-1142.23,0.00021917,2]
[315914567,1709279778881,-500.0,0.00021917,2]
[315914568,1709279778909,-500.0,0.00021917,2]
[315914569,1709279778937,-1642.56,0.00021917,2]
[315914570,1709279778964,-500.0,0.00021917,2]
[315914571,1709279778991,-500.0,0.00021917,2]
[315914572,1709279779018,-508.4520774,0.00021917,2]
[315914573,1709279779044,-519.77878947,0.00021917,2]
[315914574,1709279779072,-500.0,0.00021917,2]
[315914575,1709279779098,-500.0,0.00021917,2]
[315914576,1709279779131,-500.0,0.00021917,2]
[315914577,1709279779159,-500.0,0.00021917,2]
[315914578,1709279779186,-500.0,0.00021917,2]
[315914579,1709279779220,-1850.88,0.00021917,2]
[315914580,1709279779248,-5500.4,0.00021917,2]
[315914581,1709279779277,-1588.61,0.00021917,2]
[315914582,1709279779305,-500.0,0.00021917,2]
[315914583,1709279779335,-2288.48,0.00021917,2]
[315914584,1709279779363,-500.0,0.00021917,2]
[315914585,1709279779391,-500.0,0.00021917,2]
[315914586,1709279779420,-1097.13,0.00021917,2]
[315914587,1709279779447,-500.0,0.00021917,2]
[315914588,1709279779477,-736.53,0.00021917,2]
[315914589,1709279779503,-500.0,0.00021917,2]
[315914590,1709279779535,-500.0,0.00021917,2]
[315914591,1709279779564,-500.0,0.00021917,2]
[315914592,1709279779593,-988.17,0.00021917,2]
[315914593,1709279779623,-1067.98,0.00021917,2]
[315914594,1709279779651,-521.0,0.00021917,2]
[315914595,1709279779679,-500.0,0.00021917,2]
[315914596,1709279779707,-598.17,0.00021917,2]
[315914597,1709279779735,-4129.64,0.00021917,2]
[315914598,1709279779763,-526.27,0.00021917,2]
[315914599,1709279779790,-500.0,0.00021917,2]
[315914600,1709279779818,-3064.84,0.00021917,2]
[315914601,1709279779846,-500.0,0.00021917,2]
[315914602,1709279779873,-500.0,0.00021917,2]
[315914603,1709279779902,-500.0,0.00021917,2]
[315914604,1709279779930,-500.0,0.00021917,2]
[315914605,1709279779958,-500.0,0.00021917,2]
[315914606,1709279779988,-500.0,0.00021917,2]
[315914607,1709279780017,-531.93,0.00021917,2]
[315914608,1709279780045,-1906.33,0.00021917,2]
[315914609,1709279780076,-500.0,0.00021917,2]
[315914610,1709279780105,-1023.55,0.00021999,2]
[315914611,1709279780134,-437.33609476,0.00022,2]
[315914612,1709279780165,-350.0,0.00022,3]
[315914613,1709279780196,-500.0,0.00022191,2]
[315914614,1709279780225,-1008.09,0.00022191,2]
[315914615,1709279780253,-1035.13,0.00022191,2]
[315914616,1709279780281,-500.0,0.00022191,2]
[315914617,1709279780313,-625.3351432,0.00022191,2]
[315914618,1709279780343,-805.79,0.00022191,2]
[315914619,1709279780373,-794.46,0.00022191,2]
[315914620,1709279780401,-689.44,0.00022191,2]
[315914621,1709279780549,-1142.23,0.00022191,2]
[315914622,1709279780581,-500.0,0.00022191,2]
[315914623,1709279780610,-500.0,0.00022191,2]
[315914624,1709279780638,-1642.56,0.00022191,2]
[315914625,1709279780666,-515.98796315,0.00022191,2]
[315914626,1709279780694,-500.0,0.00022191,2]
[315914627,1709279780724,-500.0,0.00022191,2]
[315914628,1709279780753,-500.0,0.00022191,2]
[315914629,1709279780782,-500.0,0.00022191,2]
[315914630,1709279780813,-500.0,0.00022191,2]
[315914631,1709279780842,-1850.88,0.00022191,2]
[315914632,1709279780876,-5500.4,0.00022191,2]
[315914633,1709279780905,-1588.61,0.00022191,2]
[315914634,1709279780932,-500.0,0.00022191,2]
[315914635,1709279780960,-2288.48,0.00022191,2]
[315914636,1709279780987,-597.12786199,0.00022191,2]
[315914637,1709279781015,-500.0,0.00022191,2]
[315914638,1709279781044,-1097.13,0.00022191,2]
[315914639,1709279781077,-281.02170374,0.00022191,2]
[315914640,1709279781105,-736.53,0.00022191,2]
[315914641,1709279781131,-500.0,0.00022191,2]
[315914642,1709279781158,-500.0,0.00022191,2]
[315914643,1709279781184,-500.0,0.00022191,2]
[315914644,1709279781215,-988.17,0.00022191,2]
[315914645,1709279781246,-1067.98,0.00022191,2]
[315914646,1709279781274,-521.0,0.00022191,2]
[315914647,1709279781302,-500.0,0.00022191,2]
[315914648,1709279781332,-598.17,0.00022191,2]
[315914649,1709279781365,-4129.64,0.00022191,2]
[315914650,1709279781393,-526.27,0.00022191,2]
[315914651,1709279781421,-500.0,0.00022191,2]
[315914652,1709279781451,-3064.84,0.00022191,2]
[315914653,1709279781478,-500.0,0.00022191,2]
[315914654,1709279781509,-500.0,0.00022191,2]
[315914655,1709279781537,-528.90677604,0.00022191,2]
[315914656,1709279781566,-500.0,0.00022191,2]
[315914657,1709279781592,-500.0,0.00022191,2]
[315914658,1709279781619,-500.0,0.00022191,2]
[315914659,1709279781646,-531.93,0.00022191,2]
[315914660,1709279781673,-1906.33,0.00022191,2]
[315914661,1709279781700,-500.0,0.00022191,2]
[315914662,1709279781730,-8992.21087266,0.00022449,3]
[315914663,1709279781759,-2426.78,0.00022465,2]
[315914664,1709279781786,-500.0,0.00022465,2]
[315914665,1709279781814,-1008.09,0.00022465,2]
[315914666,1709279781841,-1035.13,0.00022465,2]
[315914667,1709279781871,-500.0,0.00022465,2]
[315914668,1709279781899,-805.79,0.00022465,2]
[315914669,1709279781926,-794.46,0.00022465,2]
[315914670,1709279781955,-689.44,0.00022465,2]
[315914671,1709279781982,-1142.23,0.00022465,2]
[315914672,1709279782008,-500.0,0.00022465,2]
[315914673,1709279782034,-500.0,0.00022465,2]
[315914674,1709279782062,-1642.56,0.00022465,2]
[315914675,1709279782089,-500.0,0.00022465,2]
[315914676,1709279782118,-500.0,0.00022465,2]
[315914677,1709279782146,-500.0,0.00022465,2]
[315914678,1709279782173,-500.0,0.00022465,2]
[315914679,1709279782199,-500.0,0.00022465,2]
[315914680,1709279782227,-1850.88,0.00022465,2]
[315914681,1709279782253,-5500.4,0.00022465,2]
[315914682,1709279782279,-1588.61,0.00022465,2]
[315914683,1709279782306,-500.0,0.00022465,2]
[315914684,1709279782335,-2288.48,0.00022465,2]
[315914685,1709279782361,-500.0,0.00022465,2]
[315914686,1709279782387,-1097.13,0.00022465,2]
[315914687,1709279782414,-736.53,0.00022465,2]
[315914688,1709279782441,-500.0,0.00022465,2]
[315914689,1709279782467,-447.10292524,0.00022465,2]
[315914690,1709279782494,-500.0,0.00022465,2]
[315914691,1709279782520,-988.17,0.00022465,2]
[315914692,1709279782548,-1067.98,0.00022465,2]
[315914693,1709279782577,-521.0,0.00022465,2]
[315914694,1709279782604,-598.17,0.00022465,2]
[315914695,1709279782630,-500.0,0.00022465,2]
[315914696,1709279782657,-4129.64,0.00022465,2]
[315914697,1709279782683,-526.27,0.00022465,2]
[315914698,1709279782710,-500.0,0.00022465,2]
[315914699,1709279782738,-3064.84,0.00022465,2]
[315914700,1709279782764,-500.0,0.00022465,2]
[315914701,1709279782791,-500.0,0.00022465,2]
[315914702,1709279782818,-500.0,0.00022465,2]
[315914703,1709279782845,-500.0,0.00022465,2]
[315914704,1709279782871,-500.0,0.00022465,2]
[315914705,1709279782898,-531.93,0.00022465,2]
[315914706,1709279782925,-1906.33,0.00022465,2]
[315914707,1709279782950,-500.0,0.00022465,2]
[315914708,1709279782975,-150.0,0.000225,2]
[315914709,1709279783000,-155.0,0.000225,2]